fUST/lending_fUST_20250220
["ID","MTS","AMOUNT","RATE_DAILY","PERIOD"]
[353742092,1740003060802,-500.0,0.00014109,2]
[353742093,1740003060811,-500.0,0.00014109,2]
[353742094,1740003060823,-500.0,0.00014109,2]
[353742095,1740003060832,-271.22088126,0.00014109,2]
[353742096,1740003060842,-500.0,0.00014109,2]
[353742097,1740003060852,-502.41848845,0.00014109,2]
[353742098,1740003060861,-761.2,0.00014109,2]
[353742099,1740003060870,-500.0,0.00014109,2]
[353742100,1740003060879,-500.0,0.00014109,2]
[353742101,1740003060888,-500.0,0.00014109,2]
[353742102,1740003060898,-500.0,0.00014109,2]
[353742103,1740003060907,-500.0,0.00014109,2]
[353742104,1740003060918,-500.0,0.00014109,2]
[353742105,1740003060927,-500.0,0.00014109,2]
[353742106,1740003060936,-500.0,0.00014109,2]
[353742107,1740003060946,-500.0,0.00014109,2]
[353742108,1740003060955,-508.42,0.00014109,2]
[353742109,1740003060965,-281.85256995,0.00014109,2]
[353742110,1740003060974,-500.0,0.00014109,2]
[353742111,1740003060984,-500.0,0.00014109,2]
[353742112,1740003060993,-500.0,0.00014109,2]
[353742113,1740003061003,-633.92,0.00014109,2]
[353742114,1740003061012,-500.0,0.00014109,2]
[353742115,1740003061023,-500.0,0.00014109,2]
[353742116,1740003061033,-500.0,0.00014109,2]
[353742117,1740003061042,-500.0,0.00014109,2]
[353742118,1740003061052,-500.0,0.00014109,2]
[353742119,1740003061061,-513.63,0.00014109,2]
[353742120,1740003061072,-326.75827312,0.00014109,2]
[353742121,1740003061082,-249.69230836,0.00014109,2]
[353742122,1740003061092,-500.0,0.00014109,2]
[353742123,1740003061101,-499.17932562,0.00014109,2]
[353742124,1740003061111,-500.0,0.00014109,2]
[353742125,1740003061121,-500.0,0.00014109,2]
[353742126,1740003061131,-500.0,0.00014109,2]
[353742127,1740003061141,-500.0,0.00014109,2]
[353742128,1740003061152,-500.0,0.00014109,2]
[353742129,1740003061162,-500.0,0.00014109,2]
[353742130,1740003061171,-500.0,0.00014109,2]
[353742131,1740003061180,-502.8753739,0.00014109,2]
[353742132,1740003061190,-500.0,0.00014109,2]
[353742133,1740003061200,-500.0,0.00014109,2]
[353742134,1740003061209,-500.0,0.00014109,2]
[353742135,1740003061219,-502.94796823,0.00014109,2]
[353742136,1740003061228,-500.0,0.00014109,2]
[353742137,1740003061238,-500.0,0.00014109,2]
[353742138,1740003061247,-500.0,0.00014109,2]
[353742139,1740003061258,-501.57562474,0.00014109,2]
[353742140,1740003061268,-500.0,0.00014109,2]
[353742141,1740003061277,-500.0,0.00014109,2]
[353742142,1740003061287,-500.0,0.00014109,2]
[353742143,1740003061297,-500.0,0.00014109,2]
[353742144,1740003061306,-8102.34,0.00014109,2]
[353742145,1740003061317,-508.66813475,0.00014109,2]
[353742146,1740003061326,-2099.27,0.00014109,2]
[353742147,1740003061336,-500.0,0.00014109,2]
[353742148,1740003061345,-500.0,0.00014109,2]
[353742149,1740003061355,-1092.43,0.00014109,2]
[353742150,1740003061364,-1217.39,0.00014109,2]
[353742151,1740003061373,-1949.16,0.00014109,2]
[353742152,1740003061382,-500.0,0.00014109,2]
[353742153,1740003061391,-524.66,0.00014109,2]
[353742154,1740003061401,-500.0,0.00014109,2]
[353742155,1740003061410,-500.0,0.00014109,2]
[353742156,1740003061418,-1052.02,0.00014109,2]
[353742157,1740003061427,-500.0,0.00014109,2]
[353742158,1740003061439,-500.0,0.00014109,2]
[353742159,1740003061448,-500.0,0.00014109,2]
[353742160,1740003061457,-500.0,0.00014109,2]
[353742161,1740003061467,-500.0,0.00014109,2]
[353742162,1740003061477,-500.0,0.00014109,2]
[353742163,1740003061487,-941.1,0.00014109,2]
[353742164,1740003061496,-500.0,0.00014109,2]
[353742165,1740003061505,-415.66146275,0.00014109,2]
[353742166,1740003061517,-756.33,0.00014109,2]
[353742167,1740003061527,-500.0,0.00014109,2]
[353742168,1740003061538,-1295.18,0.00014109,2]
[353742169,1740003061549,-500.0,0.00014109,2]
[353742170,1740003061558,-848.29,0.00014109,2]
[353742171,1740003061569,-1187.52,0.00014109,2]
[353742172,1740003061578,-500.0,0.00014109,2]
[353742173,1740003061587,-500.0,0.00014109,2]
[353742174,1740003061596,-24763.67,0.00014109,2]
[353742175,1740003061606,-500.0,0.00014109,2]
[353742176,1740003061615,-1735.97,0.00014109,2]
[353742177,1740003061624,-367.82520372,0.00014109,2]
[353742178,1740003061633,-8597.22,0.00014109,2]
[353742179,1740003061643,-500.0,0.00014109,2]
[353742180,1740003061652,-997.64,0.00014109,2]
[353742181,1740003061662,-3023.55,0.00014109,2]
[353742182,1740003061672,-500.0,0.00014109,2]
[353742183,1740003061681,-1946.4,0.00014109,2]
[353742184,1740003061691,-711.15,0.00014109,2]
[353742185,1740003061700,-500.0,0.00014109,2]
[353742186,1740003061710,-904.12,0.00014109,2]
[353742187,1740003061720,-500.0,0.00014109,2]
[353742188,1740003061729,-500.0,0.00014109,2]
[353742189,1740003061738,-500.0,0.00014109,2]
[353742190,1740003061748,-500.0,0.00014109,2]
[353742191,1740003061758,-500.0,0.00014109,2]
[353742192,1740003061767,-500.0,0.00014109,2]
[353742193,1740003061777,-1138.69,0.00014109,2]
[353742194,1740003061786,-2258.14,0.00014109,2]
[353742195,1740003061796,-514.56,0.00014109,2]
[353742196,1740003061806,-500.0,0.00014109,2]
[353742197,1740003061815,-500.0,0.00014109,2]
[353742198,1740003061825,-1242.93,0.00014109,2]
[353742199,1740003061834,-500.0,0.00014109,2]
[353742200,1740003061844,-500.0,0.00014109,2]
[353742201,1740003061854,-500.0,0.00014109,2]
[353742202,1740003061863,-500.0,0.00014109,2]
[353742203,1740003061874,-500.0,0.00014109,2]
[353742204,1740003061884,-592.63,0.00014109,2]
[353742205,1740003061895,-1069.82,0.00014109,2]
[353742206,1740003061906,-500.0,0.00014109,2]
[353742207,1740003061919,-500.0,0.00014109,2]
[353742208,1740003061929,-500.0,0.00014109,2]
[353742209,1740003061939,-500.0,0.00014109,2]
[353742210,1740003061949,-500.0,0.00014109,2]
[353742211,1740003061959,-790.58,0.00014109,2]
[353742212,1740003061969,-500.0,0.00014109,2]
[353742213,1740003061979,-500.0,0.00014109,2]
[353742214,1740003061989,-2407.87,0.00014109,2]
[353742215,1740003061999,-1058.64,0.00014109,2]
[353742216,1740003062008,-500.0,0.00014109,2]
[353742217,1740003062018,-500.0,0.00014109,2]
[353742218,1740003062028,-500.0,0.00014109,2]
[353742219,1740003062037,-500.0,0.00014109,2]
[353742220,1740003062047,-500.0,0.00014109,2]
[353742221,1740003062056,-500.0,0.00014109,2]
[353742222,1740003062065,-500.0,0.00014109,2]
[353742223,1740003062075,-500.0,0.00014109,2]
[353742224,1740003062084,-500.0,0.00014109,2]
[353742225,1740003062094,-500.0,0.00014109,2]
[353742226,1740003062103,-500.0,0.00014109,2]
[353742227,1740003062114,-500.0,0.00014109,2]
[353742228,1740003062123,-500.0,0.00014109,2]
[353742229,1740003062132,-729.45,0.00014109,2]
[353742230,1740003062141,-500.0,0.00014109,2]
[353742231,1740003062151,-500.0,0.00014109,2]
[353742232,1740003062161,-500.0,0.00014109,2]
[353742233,1740003062170,-500.0,0.00014109,2]
[353742234,1740003062180,-575.66333624,0.00014191,2]
[353742235,1740003062189,-500.0,0.00014191,2]
[353742236,1740003062302,-500.0,0.00014191,2]
[353742237,1740003062312,-500.0,0.00014191,2]
[353742238,1740003062321,-500.0,0.00014191,2]
[353742239,1740003062331,-545.8278083,0.00014191,2]
[353742240,1740003062340,-521.66,0.00014191,2]
[353742241,1740003062350,-500.0,0.00014191,2]
[353742242,1740003062361,-500.0,0.00014191,2]
[353742243,1740003062370,-503.96689184,0.00014191,2]
[353742244,1740003062379,-514.57,0.00014191,2]
[353742245,1740003062390,-500.0,0.00014191,2]
[353742246,1740003062400,-500.0,0.00014191,2]
[353742247,1740003062410,-698.29,0.00014191,2]
[353742248,1740003062421,-500.0,0.00014191,2]
[353742249,1740003062432,-792.62,0.00014191,2]
[353742250,1740003062445,-500.0,0.00014191,2]
[353742251,1740003062454,-500.0,0.00014191,2]
[353742252,1740003062464,-500.0,0.00014191,2]
[353742253,1740003062473,-500.0,0.00014191,2]
[353742254,1740003062482,-500.0,0.00014191,2]
[353742255,1740003062492,-500.0,0.00014191,2]
[353742256,1740003062501,-500.0,0.00014191,2]
[353742257,1740003062510,-500.0,0.00014191,2]
[353742258,1740003062519,-500.0,0.00014191,2]
[353742259,1740003062529,-500.0,0.00014191,2]
[353742260,1740003062539,-500.0,0.00014191,2]
[353742261,1740003062548,-500.0,0.00014191,2]
[353742262,1740003062557,-500.0,0.00014191,2]
[353742263,1740003062567,-503.13910038,0.00014191,2]
[353742264,1740003062577,-500.0,0.00014191,2]
[353742265,1740003062587,-500.0,0.00014191,2]
[353742266,1740003062597,-500.0,0.00014191,2]
[353742267,1740003062606,-500.0,0.00014191,2]
[353742268,1740003062615,-500.0,0.00014191,2]
[353742269,1740003062624,-761.2,0.00014191,2]
[353742270,1740003062634,-500.0,0.00014191,2]
[353742271,1740003062643,-500.0,0.00014191,2]
[353742272,1740003062652,-500.0,0.00014191,2]
[353742273,1740003062661,-500.0,0.00014191,2]
[353742274,1740003062670,-500.0,0.00014191,2]
[353742275,1740003062680,-500.0,0.00014191,2]
[353742276,1740003062689,-500.0,0.00014191,2]
[353742277,1740003062699,-500.0,0.00014191,2]
[353742278,1740003062710,-500.0,0.00014191,2]
[353742279,1740003062719,-508.42,0.00014191,2]
[353742280,1740003062729,-500.0,0.00014191,2]
[353742281,1740003062738,-500.0,0.00014191,2]
[353742282,1740003062748,-500.0,0.00014191,2]
[353742283,1740003062757,-633.92,0.00014191,2]
[353742284,1740003062767,-170.70276006,0.00014191,2]
[353742285,1740003062776,-500.0,0.00014191,2]
[353742286,1740003062786,-500.0,0.00014191,2]
[353742287,1740003062795,-500.0,0.00014191,2]
[353742288,1740003062805,-500.0,0.00014191,2]
[353742289,1740003062814,-513.63,0.00014191,2]
[353742290,1740003062824,-500.0,0.00014191,2]
[353742291,1740003062833,-500.0,0.00014191,2]
[353742292,1740003062843,-500.0,0.00014191,2]
[353742293,1740003062853,-500.0,0.00014191,2]
[353742294,1740003062862,-442.05072385,0.00014191,2]
[353742295,1740003062871,-500.0,0.00014191,2]
[353742296,1740003062881,-500.0,0.00014191,2]
[353742297,1740003062891,-500.0,0.00014191,2]
[353742298,1740003062900,-503.20686269,0.00014191,2]
[353742299,1740003062911,-500.0,0.00014191,2]
[353742300,1740003062921,-500.0,0.00014191,2]
[353742301,1740003062931,-500.0,0.00014191,2]
[353742302,1740003062940,-500.0,0.00014191,2]
[353742303,1740003062950,-500.0,0.00014191,2]
[353742304,1740003062960,-500.0,0.00014191,2]
[353742305,1740003062970,-500.0,0.00014191,2]
[353742306,1740003062980,-635.03976938,0.00014191,2]
[353742307,1740003062990,-8102.34,0.00014191,2]
[353742308,1740003062999,-2099.27,0.00014191,2]
[353742309,1740003063009,-500.0,0.00014191,2]
[353742310,1740003063019,-1092.43,0.00014191,2]
[353742311,1740003063029,-1217.39,0.00014191,2]
[353742312,1740003063038,-1949.16,0.00014191,2]
[353742313,1740003063048,-500.0,0.00014191,2]
[353742314,1740003063058,-524.66,0.00014191,2]
[353742315,1740003063068,-500.0,0.00014191,2]
[353742316,1740003063078,-500.0,0.00014191,2]
[353742317,1740003063087,-1052.02,0.00014191,2]
[353742318,1740003063096,-500.0,0.00014191,2]
[353742319,1740003063105,-500.0,0.00014191,2]
[353742320,1740003063114,-500.0,0.00014191,2]
[353742321,1740003063124,-503.13017325,0.00014191,2]
[353742322,1740003063134,-500.0,0.00014191,2]
[353742323,1740003063144,-500.0,0.00014191,2]
[353742324,1740003063155,-941.1,0.00014191,2]
[353742325,1740003063165,-500.0,0.00014191,2]
[353742326,1740003063175,-756.33,0.00014191,2]
[353742327,1740003063184,-500.0,0.00014191,2]
[353742328,1740003063194,-1295.18,0.00014191,2]
[353742329,1740003063205,-500.0,0.00014191,2]
[353742330,1740003063214,-848.29,0.00014191,2]
[353742331,1740003063224,-1187.52,0.00014191,2]
[353742332,1740003063234,-500.0,0.00014191,2]
[353742333,1740003063244,-501.73341867,0.00014191,2]
[353742334,1740003063254,-24763.67,0.00014191,2]
[353742335,1740003063264,-500.0,0.00014191,2]
[353742336,1740003063273,-1735.97,0.00014191,2]
[353742337,1740003063283,-8597.22,0.00014191,2]
[353742338,1740003063292,-500.0,0.00014191,2]
[353742339,1740003063301,-997.64,0.00014191,2]
[353742340,1740003063311,-3023.55,0.00014191,2]
[353742341,1740003063321,-1946.4,0.00014191,2]
[353742342,1740003063330,-711.15,0.00014191,2]
[353742343,1740003063341,-427.27,0.00014191,2]
[353742344,1740003063351,-904.12,0.00014191,2]
[353742345,1740003063360,-500.0,0.00014191,2]
[353742346,1740003063371,-500.0,0.00014191,2]
[353742347,1740003063381,-500.0,0.00014191,2]
[353742348,1740003063391,-500.0,0.00014191,2]
[353742349,1740003063400,-1138.69,0.00014191,2]
[353742350,1740003063410,-500.0,0.00014191,2]
[353742351,1740003063420,-2258.14,0.00014191,2]
[353742352,1740003063430,-500.0,0.00014191,2]
[353742353,1740003063441,-500.0,0.00014191,2]
[353742354,1740003063451,-1242.93,0.00014191,2]
[353742355,1740003063462,-500.0,0.00014191,2]
[353742356,1740003063471,-500.0,0.00014191,2]
[353742357,1740003063482,-500.0,0.00014191,2]
[353742358,1740003063492,-500.0,0.00014191,2]
[353742359,1740003063502,-500.0,0.00014191,2]
[353742360,1740003063511,-592.63,0.00014191,2]
[353742361,1740003063521,-1069.82,0.00014191,2]
[353742362,1740003063531,-500.0,0.00014191,2]
[353742363,1740003063541,-500.0,0.00014191,2]
[353742364,1740003063551,-500.0,0.00014191,2]
[353742365,1740003063561,-500.0,0.00014191,2]
[353742366,1740003063571,-500.0,0.00014191,2]
[353742367,1740003063582,-790.58,0.00014191,2]
[353742368,1740003063592,-500.0,0.00014191,2]
[353742369,1740003063603,-500.0,0.00014191,2]
[353742370,1740003063613,-2407.87,0.00014191,2]
[353742371,1740003063626,-1058.64,0.00014191,2]
[353742372,1740003063637,-500.0,0.00014191,2]
[353742373,1740003063646,-315.04259289,0.00014191,2]
[353742374,1740003063655,-500.0,0.00014191,2]
[353742375,1740003063665,-500.0,0.00014191,2]
[353742376,1740003063675,-500.0,0.00014191,2]
[353742377,1740003063685,-500.0,0.00014191,2]
[353742378,1740003063695,-500.0,0.00014191,2]
[353742379,1740003063705,-500.0,0.00014191,2]
[353742380,1740003063715,-500.0,0.00014191,2]
[353742381,1740003063725,-500.0,0.00014191,2]
[353742382,1740003063735,-500.0,0.00014191,2]
[353742383,1740003063745,-505.43319536,0.00014191,2]
[353742384,1740003063755,-729.45,0.00014191,2]
[353742385,1740003063765,-500.0,0.00014191,2]
[353742386,1740003063775,-500.0,0.00014191,2]
[353742387,1740003063785,-500.0,0.00014191,2]
[353742388,1740003063794,-904.4072025,0.00014221,2]
[353742389,1740003063804,-251.50138872,0.00014221,2]
[353742390,1740003063814,-1000.0,0.00014221,2]
[353742391,1740003063824,-1144.4288868,0.00014221,2]
[353742392,1740003063833,-346.303716,0.00014221,2]
[353742393,1740003063843,-1000.0,0.00014221,2]
[353742394,1740003063854,-1000.0,0.00014221,2]
[353742395,1740003063863,-1013.01338429,0.00014221,2]
[353742396,1740003063873,-1007.8268122,0.00014247,2]
[353742397,1740003063884,-500.0,0.00014247,2]
[353742398,1740003063894,-690.17229074,0.00014256,2]
[353742399,1740003063905,-500.0,0.00014273,2]
[353742400,1740003063914,-500.0,0.00014273,2]
[353742401,1740003063925,-500.0,0.00014273,2]
[353742402,1740003063935,-249.81073906,0.00014273,2]
[353742403,1740003063946,-521.66,0.00014273,2]
[353742404,1740003063955,-500.0,0.00014273,2]
[353742405,1740003063965,-500.0,0.00014273,2]
[353742406,1740003063975,-514.57,0.00014273,2]
[353742407,1740003063986,-500.0,0.00014273,2]
[353742408,1740003063996,-645.14,0.00014273,2]
[353742409,1740003064006,-698.29,0.00014273,2]
[353742410,1740003064016,-500.0,0.00014273,2]
[353742411,1740003064026,-792.62,0.00014273,2]
[353742412,1740003064035,-500.0,0.00014273,2]
[353742413,1740003064045,-500.0,0.00014273,2]
[353742414,1740003064055,-500.0,0.00014273,2]
[353742415,1740003064069,-500.0,0.00014273,2]
[353742416,1740003064079,-500.0,0.00014273,2]
[353742417,1740003064089,-500.0,0.00014273,2]
[353742418,1740003064099,-500.0,0.00014273,2]
[353742419,1740003064110,-500.0,0.00014273,2]
[353742420,1740003064120,-500.0,0.00014273,2]
[353742421,1740003064130,-500.0,0.00014273,2]
[353742422,1740003064139,-500.0,0.00014273,2]
[353742423,1740003064149,-500.0,0.00014273,2]
[353742424,1740003064160,-500.0,0.00014273,2]
[353742425,1740003064171,-294.00485834,0.00014273,2]
[353742426,1740003064181,-500.0,0.00014273,2]
[353742427,1740003064191,-500.0,0.00014273,2]
[353742428,1740003064201,-500.0,0.00014273,2]
[353742429,1740003064211,-761.2,0.00014273,2]
[353742430,1740003064221,-500.0,0.00014273,2]
[353742431,1740003064232,-500.0,0.00014273,2]
[353742432,1740003064242,-500.0,0.00014273,2]
[353742433,1740003064252,-500.0,0.00014273,2]
[353742434,1740003064262,-500.0,0.00014273,2]
[353742435,1740003064273,-500.0,0.00014273,2]
[353742436,1740003064283,-500.0,0.00014273,2]
[353742437,1740003064293,-500.0,0.00014273,2]
[353742438,1740003064302,-508.42,0.00014273,2]
[353742439,1740003064313,-500.0,0.00014273,2]
[353742440,1740003064324,-500.0,0.00014273,2]
[353742441,1740003064334,-500.0,0.00014273,2]
[353742442,1740003064344,-633.92,0.00014273,2]
[353742443,1740003064354,-500.0,0.00014273,2]
[353742444,1740003064364,-500.0,0.00014273,2]
[353742445,1740003064374,-505.14873693,0.00014273,2]
[353742446,1740003064384,-500.0,0.00014273,2]
[353742447,1740003064394,-513.63,0.00014273,2]
[353742448,1740003064405,-500.0,0.00014273,2]
[353742449,1740003064415,-500.0,0.00014273,2]
[353742450,1740003064425,-500.0,0.00014273,2]
[353742451,1740003064436,-500.0,0.00014273,2]
[353742452,1740003064448,-500.0,0.00014273,2]
[353742453,1740003064458,-500.0,0.00014273,2]
[353742454,1740003064469,-502.81816364,0.00014273,2]
[353742455,1740003064479,-500.0,0.00014273,2]
[353742456,1740003064489,-549.31818159,0.00014273,2]
[353742457,1740003064498,-626.36383376,0.00014273,2]
[353742458,1740003064608,-500.0,0.00014273,2]
[353742459,1740003064619,-8102.34,0.00014273,2]
[353742460,1740003064629,-2099.27,0.00014273,2]
[353742461,1740003064639,-500.0,0.00014273,2]
[353742462,1740003064650,-1092.43,0.00014273,2]
[353742463,1740003064660,-1217.39,0.00014273,2]
[353742464,1740003064670,-1949.16,0.00014273,2]
[353742465,1740003064680,-500.0,0.00014273,2]
[353742466,1740003064690,-524.66,0.00014273,2]
[353742467,1740003064700,-500.0,0.00014273,2]
[353742468,1740003064710,-500.0,0.00014273,2]
[353742469,1740003064720,-1052.02,0.00014273,2]
[353742470,1740003064730,-259.25194406,0.00014273,2]
[353742471,1740003064740,-500.0,0.00014273,2]
[353742472,1740003064749,-500.0,0.00014273,2]
[353742473,1740003064760,-500.0,0.00014273,2]
[353742474,1740003064770,-500.0,0.00014273,2]
[353742475,1740003064780,-941.1,0.00014273,2]
[353742476,1740003064790,-500.0,0.00014273,2]
[353742477,1740003064800,-756.33,0.00014273,2]
[353742478,1740003064810,-1295.18,0.00014273,2]
[353742479,1740003064820,-500.0,0.00014273,2]
[353742480,1740003064829,-848.29,0.00014273,2]
[353742481,1740003064839,-1187.52,0.00014273,2]
[353742482,1740003064848,-500.0,0.00014273,2]
[353742483,1740003064858,-24763.67,0.00014273,2]
[353742484,1740003064868,-500.0,0.00014273,2]
[353742485,1740003064878,-1735.97,0.00014273,2]
[353742486,1740003064887,-8597.22,0.00014273,2]
[353742487,1740003064898,-500.0,0.00014273,2]
[353742488,1740003064908,-997.64,0.00014273,2]
[353742489,1740003064919,-3023.55,0.00014273,2]
[353742490,1740003064928,-1946.4,0.00014273,2]
[353742491,1740003064938,-711.15,0.00014273,2]
[353742492,1740003064948,-904.12,0.00014273,2]
[353742493,1740003064957,-635.9639783,0.00014273,2]
[353742494,1740003064967,-516.29,0.00014273,2]
[353742495,1740003064977,-384.47588428,0.00014273,2]
[353742496,1740003064987,-500.0,0.00014273,2]
[353742497,1740003064997,-1138.69,0.00014273,2]
[353742498,1740003065006,-500.0,0.00014273,2]
[353742499,1740003065017,-2258.14,0.00014273,2]
[353742500,1740003065027,-500.0,0.00014273,2]
[353742501,1740003065037,-500.0,0.00014273,2]
[353742502,1740003065047,-1242.93,0.00014273,2]
[353742503,1740003065057,-500.0,0.00014273,2]
[353742504,1740003065069,-500.0,0.00014273,2]
[353742505,1740003065079,-500.0,0.00014273,2]
[353742506,1740003065089,-500.0,0.00014273,2]
[353742507,1740003065099,-500.0,0.00014273,2]
[353742508,1740003065109,-592.63,0.00014273,2]
[353742509,1740003065119,-1069.82,0.00014273,2]
[353742510,1740003065128,-500.0,0.00014273,2]
[353742511,1740003065138,-500.0,0.00014273,2]
[353742512,1740003065148,-500.0,0.00014273,2]
[353742513,1740003065159,-500.0,0.00014273,2]
[353742514,1740003065169,-500.0,0.00014273,2]
[353742515,1740003065179,-790.58,0.00014273,2]
[353742516,1740003065188,-500.0,0.00014273,2]
[353742517,1740003065198,-500.0,0.00014273,2]
[353742518,1740003065208,-2407.87,0.00014273,2]
[353742519,1740003065217,-1058.64,0.00014273,2]
[353742520,1740003065227,-501.73815508,0.00014273,2]
[353742521,1740003065236,-500.0,0.00014273,2]
[353742522,1740003065245,-500.0,0.00014273,2]
[353742523,1740003065255,-500.0,0.00014273,2]
[353742524,1740003065264,-633.8,0.00014273,2]
[353742525,1740003065274,-500.0,0.00014273,2]
[353742526,1740003065284,-500.0,0.00014273,2]
[353742527,1740003065294,-500.0,0.00014273,2]
[353742528,1740003065304,-500.0,0.00014273,2]
[353742529,1740003065313,-500.0,0.00014273,2]
[353742530,1740003065323,-729.45,0.00014273,2]
[353742531,1740003065333,-500.0,0.00014273,2]
[353742532,1740003065342,-500.0,0.00014273,2]
[353742533,1740003065352,-500.0,0.00014273,2]
[353742534,1740003065362,-1000.0,0.00014321,2]
[353742535,1740003065371,-184.97113629,0.00014321,2]
[353742536,1740003065381,-1000.0,0.00014321,2]
[353742537,1740003065390,-598.35,0.00014356,2]
[353742538,1740003065400,-500.0,0.00014356,2]
[353742539,1740003065409,-500.0,0.00014356,2]
[353742540,1740003065418,-521.66,0.00014356,2]
[353742541,1740003065427,-500.0,0.00014356,2]
[353742542,1740003065439,-500.0,0.00014356,2]
[353742543,1740003065448,-514.57,0.00014356,2]
[353742544,1740003065459,-500.0,0.00014356,2]
[353742545,1740003065468,-698.29,0.00014356,2]
[353742546,1740003065478,-216.60144462,0.00014356,2]
[353742547,1740003065490,-792.62,0.00014356,2]
[353742548,1740003065501,-500.0,0.00014356,2]
[353742549,1740003065512,-500.0,0.00014356,2]
[353742550,1740003065523,-500.0,0.00014356,2]
[353742551,1740003065534,-500.0,0.00014356,2]
[353742552,1740003065544,-500.0,0.00014356,2]
[353742553,1740003065555,-503.43455033,0.00014356,2]
[353742554,1740003065565,-500.0,0.00014356,2]
[353742555,1740003065575,-500.0,0.00014356,2]
[353742556,1740003065585,-500.0,0.00014356,2]
[353742557,1740003065594,-500.0,0.00014356,2]
[353742558,1740003065603,-500.0,0.00014356,2]
[353742559,1740003065613,-500.0,0.00014356,2]
[353742560,1740003065623,-500.0,0.00014356,2]
[353742561,1740003065634,-500.0,0.00014356,2]
[353742562,1740003065644,-500.0,0.00014356,2]
[353742563,1740003065653,-761.2,0.00014356,2]
[353742564,1740003065663,-500.0,0.00014356,2]
[353742565,1740003065672,-500.0,0.00014356,2]
[353742566,1740003065682,-502.34888546,0.00014356,2]
[353742567,1740003065691,-505.5833699,0.00014356,2]
[353742568,1740003065700,-500.0,0.00014356,2]
[353742569,1740003065709,-295.32,0.00014356,2]
[353742570,1740003065719,-500.0,0.00014356,2]
[353742571,1740003065729,-508.42,0.00014356,2]
[353742572,1740003065740,-500.0,0.00014356,2]
[353742573,1740003065750,-633.92,0.00014356,2]
[353742574,1740003065760,-500.0,0.00014356,2]
[353742575,1740003065769,-500.0,0.00014356,2]
[353742576,1740003065779,-500.0,0.00014356,2]
[353742577,1740003065788,-513.63,0.00014356,2]
[353742578,1740003065797,-500.0,0.00014356,2]
[353742579,1740003065807,-500.0,0.00014356,2]
[353742580,1740003065816,-500.0,0.00014356,2]
[353742581,1740003065827,-500.0,0.00014356,2]
[353742582,1740003065836,-327.74060149,0.00014356,2]
[353742583,1740003065846,-500.0,0.00014356,2]
[353742584,1740003065855,-8102.34,0.00014356,2]
[353742585,1740003065865,-2099.27,0.00014356,2]
[353742586,1740003065875,-500.0,0.00014356,2]
[353742587,1740003065884,-1092.43,0.00014356,2]
[353742588,1740003065894,-1217.39,0.00014356,2]
[353742589,1740003065904,-1949.16,0.00014356,2]
[353742590,1740003065914,-500.0,0.00014356,2]
[353742591,1740003065924,-524.66,0.00014356,2]